bitfinex-derivatives/quotes_BTCF0:USTF0_20230402
["timestamp","ask_amount","ask_price","bid_price","bid_amount"]
[1680434652880,0.31938389,28377.0,28376.0,1.9768926]
[1680434653079,0.31902999,28377.0,28376.0,1.87138356]
[1680434653274,0.31861049,28377.0,28376.0,1.87138356]
[1680434653681,0.31822678,28377.0,28376.0,1.87138356]
[1680434653883,0.31790394,28377.0,28376.0,1.87138356]
[1680434654085,0.31750609,28377.0,28376.0,1.87138356]
[1680434654381,0.31715202,28377.0,28376.0,1.87138356]
[1680434654575,0.31678419,28377.0,28376.0,1.87138356]
[1680434654770,0.31641625,28377.0,28376.0,1.87138356]
[1680434655178,0.31599106,28377.0,28376.0,1.86941825]
[1680434655379,0.31562069,28377.0,28376.0,1.86941825]
[1680434655581,0.3152662,28377.0,28376.0,1.86941825]
[1680434655877,0.31489309,28377.0,28376.0,1.86941825]
[1680434656084,0.31455835,28377.0,28376.0,1.86941825]
[1680434656380,0.31285573,28377.0,28376.0,1.86941825]
[1680434656677,0.31250476,28377.0,28376.0,1.86941825]
[1680434656881,0.31216485,28377.0,28376.0,1.86941825]
[1680434657082,0.3118207,28377.0,28376.0,1.86941825]
[1680434657276,0.31146429,28377.0,28376.0,1.86941825]
[1680434657671,0.31109056,28377.0,28376.0,1.86941825]
[1680434657879,0.3107495,28377.0,28376.0,1.86941825]
[1680434658087,0.31042045,28377.0,28376.0,1.86941825]
[1680434658380,0.31009659,28377.0,28376.0,1.86941825]
[1680434658581,0.30976608,28377.0,28376.0,1.86941825]
[1680434658785,0.3094991,28377.0,28376.0,1.86941825]
[1680434659083,0.30915787,28377.0,28376.0,1.86941825]
[1680434659280,0.30885778,28377.0,28376.0,1.86941825]
[1680434659584,0.30853834,28377.0,28376.0,1.86941825]
[1680434659779,0.30821388,28377.0,28376.0,1.86941825]
[1680434660081,0.3078621,28377.0,28376.0,1.86941825]
[1680434660278,0.30754557,28377.0,28376.0,1.86941825]
[1680434660679,0.30724752,28377.0,28376.0,1.86941825]
[1680434660875,0.30698339,28377.0,28376.0,1.86941825]
[1680434661080,0.30663885,28377.0,28376.0,1.86941825]
[1680434661284,0.30638125,28377.0,28376.0,1.86941825]
[1680434661483,0.30609444,28377.0,28376.0,1.86941825]
[1680434661883,0.30580271,28377.0,28376.0,1.86941825]
[1680434662085,0.30550738,28377.0,28376.0,1.86941825]
[1680434662382,0.30521903,28377.0,28376.0,1.86941825]
[1680434662583,0.304881,28377.0,28376.0,1.86941825]
[1680434662783,0.30459408,28377.0,28376.0,1.86941825]
[1680434663179,0.30431282,28377.0,28376.0,1.86941825]
[1680434663380,0.30403375,28377.0,28376.0,1.86941825]
[1680434663579,0.30375238,28377.0,28376.0,1.86941825]
[1680434663782,0.30352529,28377.0,28376.0,1.86941825]
[1680434663986,0.30325123,28377.0,28376.0,1.86941825]
[1680434664379,0.30296074,28377.0,28376.0,1.86792184]
[1680434664580,0.30270445,28377.0,28376.0,1.86792184]
[1680434664783,0.30243826,28377.0,28376.0,1.86992184]
[1680434665177,0.30212727,28377.0,28376.0,1.86992184]
[1680434665373,0.30186345,28377.0,28376.0,1.86992184]
[1680434665578,0.3016017,28377.0,28376.0,1.86992184]
[1680434665778,0.30133576,28377.0,28376.0,1.86992184]
[1680434666178,0.30108535,28377.0,28376.0,1.86992184]
[1680434666481,0.30060342,28377.0,28376.0,1.86992184]
[1680434666885,0.30036664,28377.0,28376.0,1.86992184]
[1680434667085,0.3001166,28377.0,28376.0,1.86992184]
[1680434667290,0.29986753,28377.0,28376.0,1.86992184]
[1680434667684,0.29957611,28377.0,28376.0,1.86992184]
[1680434667886,0.29933812,28377.0,28376.0,1.86992184]
[1680434668085,0.2990942,28377.0,28376.0,1.86992184]
[1680434668288,0.29885605,28377.0,28376.0,1.86992184]
[1680434668587,0.29861784,28377.0,28376.0,1.86992184]
[1680434668787,0.29841175,28377.0,28376.0,1.86992184]
[1680434668990,0.29818266,28377.0,28376.0,1.86992184]
[1680434669491,0.29772324,28377.0,28376.0,1.86992184]
[1680434669790,0.29749574,28377.0,28376.0,1.86992184]
[1680434670089,0.29723178,28377.0,28376.0,1.86992184]
[1680434670295,0.29700629,28377.0,28376.0,1.86992184]
[1680434670683,0.29677899,28377.0,28376.0,1.86992184]
[1680434670883,0.2965606,28377.0,28376.0,1.86992184]
[1680434671089,0.29633773,28377.0,28376.0,1.86992184]
[1680434671288,0.29615595,28377.0,28376.0,1.86992184]
[1680434671488,0.29593802,28377.0,28376.0,1.86992184]
[1680434671793,0.29572697,28377.0,28376.0,1.86992184]
[1680434671993,0.29550472,28377.0,28376.0,1.86992184]
[1680434672291,0.29529785,28377.0,28376.0,1.86992184]
[1680434672483,0.7,28391.0,28376.0,1.86992184]
[1680434672484,0.7007,28389.0,28378.0,0.3522]
[1680434672686,0.7007,28389.0,28385.0,0.04220286]
[1680434673086,0.7007,28389.0,28386.0,0.38987374]
[1680434674191,0.7007,28389.0,28386.0,0.4320766]
[1680434675281,0.7007,28389.0,28386.0,0.4340766]
[1680434679896,0.7007,28389.0,28387.0,0.00551333]
[1680434680097,0.7007,28389.0,28387.0,0.05551333]
[1680434680098,0.3007,28389.0,28387.0,0.05551333]
[1680434680299,0.3007,28389.0,28388.0,0.39221173]
[1680434681197,0.3007,28389.0,28388.0,0.43641459]
[1680434681395,0.05,28391.0,28388.0,0.43641459]
[1680434681591,0.4,28392.0,28388.0,0.43641459]
[1680434681894,0.4,28392.0,28388.0,0.39321173]
[1680434682490,0.4,28392.0,28388.0,0.39421173]
[1680434683290,0.05,28391.0,28388.0,0.39421173]
[1680434683496,0.05,28391.0,28388.0,0.39221173]
[1680434683695,0.05,28391.0,28388.0,0.39421173]
[1680434686595,0.4,28392.0,28388.0,0.39421173]
[1680434686796,0.05,28391.0,28388.0,0.39421173]
[1680434688694,0.4,28392.0,28388.0,0.39421173]
[1680434688999,0.05,28391.0,28388.0,0.39421173]
[1680434689197,0.05,28391.0,28388.0,0.43441459]
[1680434689396,0.05,28391.0,28388.0,0.43641459]
[1680434689594,0.3007,28390.0,28388.0,0.43641459]
[1680434689898,0.3007,28390.0,28388.0,0.002]
[1680434689899,0.05,28389.0,28388.0,0.002]
[1680434690800,0.05,28389.0,28388.0,0.0065103]
[1680434703603,0.3007,28390.0,28388.0,0.0065103]
[1680434704207,0.05,28389.0,28388.0,0.0065103]
[1680434704802,0.05,28389.0,28388.0,0.0075103]
[1680434705210,0.05,28389.0,28388.0,0.0065103]
[1680434706608,0.3007,28390.0,28388.0,0.0065103]
[1680434706807,0.05,28389.0,28388.0,0.0065103]
[1680434708514,0.3007,28390.0,28388.0,0.0065103]
[1680434708814,0.05,28389.0,28388.0,0.0065103]
[1680434710610,0.05,28389.0,28388.0,0.22668301]
[1680434710803,0.3007,28390.0,28388.0,0.22668301]
[1680434711003,0.3007,28390.0,28388.0,0.0065103]
[1680434711413,0.3007,28390.0,28388.0,0.04871316]
[1680434712017,0.3007,28390.0,28388.0,0.04971316]
[1680434712316,0.05,28389.0,28388.0,0.04971316]
[1680434712512,0.05,28389.0,28388.0,0.26988486]
[1680434713917,0.3007,28390.0,28388.0,0.26988486]
[1680434714321,0.3007,28390.0,28388.0,0.04871316]
[1680434714824,0.05,28389.0,28388.0,0.04971316]
[1680434715025,0.05,28389.0,28388.0,0.26988447]
[1680434715624,0.3007,28390.0,28388.0,0.26988447]
[1680434715824,0.3007,28390.0,28389.0,0.04220286]
[1680434716325,0.3007,28390.0,28389.0,0.00558029]
[1680434717625,0.3007,28390.0,28389.0,0.00758029]
[1680434717823,0.3007,28390.0,28389.0,0.04978315]
[1680434723929,0.3007,28390.0,28389.0,0.00758029]
[1680434724820,0.3007,28390.0,28389.0,0.04982872]
[1680434725025,0.3007,28390.0,28389.0,0.00758029]
[1680434725423,0.3007,28390.0,28389.0,0.002]
[1680434738130,0.6014,28390.0,28389.0,0.002]
[1680434756554,0.052,28389.0,28387.0,0.04224843]
[1680434756848,0.052,28389.0,28386.0,0.04224843]
[1680434757049,0.3007,28387.0,28386.0,0.04224843]
[1680434757449,0.3007,28387.0,28386.0,0.0466093]
[1680434757849,0.3007,28387.0,28386.0,0.04224843]
[1680434758355,0.3007,28387.0,28386.0,0.04612564]
[1680434758856,0.3007,28387.0,28386.0,0.04224843]
[1680434759153,0.3017,28387.0,28386.0,0.04224843]
[1680434759349,0.3017,28387.0,28386.0,0.04612535]
[1680434759856,0.3017,28387.0,28386.0,0.04224843]
[1680434760444,0.3017,28387.0,28386.0,0.04612506]
[1680434760855,0.3017,28387.0,28386.0,0.04224843]
[1680434761556,0.3017,28387.0,28386.0,0.04612479]
[1680434761949,0.3017,28387.0,28386.0,0.04224843]
[1680434762353,0.3017,28387.0,28386.0,0.04612451]
[1680434762857,0.3017,28387.0,28386.0,0.04224843]
[1680434763358,0.3017,28387.0,28386.0,0.04612422]
[1680434763856,0.3017,28387.0,28386.0,0.04224843]
[1680434764358,0.3017,28387.0,28386.0,0.04612395]
[1680434764858,0.3017,28387.0,28386.0,0.04224843]
[1680434765357,0.3017,28387.0,28386.0,0.04612366]
[1680434765955,0.05,28386.0,28385.0,0.06330429]
[1680434766158,0.3507,28386.0,28385.0,0.28350063]
[1680434768261,0.3507,28386.0,28385.0,0.28950063]
[1680434769461,0.3507,28386.0,28385.0,0.22619634]
[1680434772163,0.3007,28386.0,28385.0,0.22619634]
[1680434774866,0.6014,28386.0,28385.0,0.22619634]
[1680434777365,0.6014,28386.0,28385.0,0.23006821]
[1680434777563,0.6014,28386.0,28385.0,0.00387187]
[1680434777762,0.05,28385.0,28381.0,0.05]
[1680434778065,0.3007,28383.0,28382.0,0.23305342]
[1680434778266,0.3007,28383.0,28382.0,0.45324748]
[1680434780367,0.3017,28383.0,28382.0,0.47824748]
[1680434780969,0.3017,28383.0,28382.0,0.87395406]
[1680434785171,0.3017,28383.0,28382.0,0.87733982]
[1680434802681,0.001,28383.0,28382.0,0.87733982]
[1680434803984,0.3017,28383.0,28382.0,0.87733982]
[1680434817990,0.3017,28383.0,28382.0,0.00338576]
[1680434818182,0.3017,28383.0,28379.0,0.10564993]
[1680434818183,0.05,28382.0,28379.0,0.10564993]
[1680434818389,0.3007,28380.0,28375.0,0.05]
[1680434818592,0.3007,28376.0,28374.0,0.12661085]
[1680434818894,0.3007,28376.0,28375.0,0.27023617]
[1680434819083,0.3007,28376.0,28375.0,0.66353152]
[1680434819289,0.3007,28376.0,28375.0,0.61353152]
[1680434819793,0.3037,28376.0,28375.0,0.61353152]
[1680434820590,0.3007,28376.0,28375.0,0.61353152]
[1680434820789,0.3037,28376.0,28375.0,0.61353152]
[1680434822093,0.3027,28376.0,28375.0,0.61953152]
[1680434822388,0.3007,28376.0,28375.0,0.61953152]
[1680434822698,0.3037,28376.0,28375.0,0.61953152]
[1680434824899,0.3007,28376.0,28375.0,0.61353152]
[1680434825101,0.3027,28376.0,28375.0,0.61853152]
[1680434825801,0.3043066,28376.0,28375.0,0.61853152]
[1680434827103,0.6050066,28376.0,28375.0,0.61853152]
[1680434829915,0.6050066,28376.0,28375.0,0.22523617]
[1680434833005,0.6050066,28376.0,28375.0,0.45833667]
[1680434837120,0.3043066,28376.0,28375.0,0.45833667]
[1680434837322,0.3043066,28376.0,28375.0,0.85741938]
[1680434837508,0.30539166,28376.0,28375.0,0.85741938]
[1680434838419,0.30539166,28376.0,28375.0,0.96279715]
[1680434839222,0.30539166,28376.0,28375.0,0.85741938]
[1680434840617,0.3007,28383.0,28376.0,0.4]
[1680434840819,0.3007,28383.0,28381.0,0.06320939]
[1680434840820,0.3507,28383.0,28381.0,0.06320939]
[1680434841024,0.3007,28383.0,28382.0,0.05]
[1680434841320,0.3007,28383.0,28382.0,0.09213386]
[1680434841517,0.3007,28383.0,28382.0,0.04213386]
[1680434841724,0.3247,28383.0,28382.0,0.04213386]
[1680434842023,0.3247,28383.0,28382.0,0.001]
[1680434842418,0.3247,28383.0,28382.0,0.051]
[1680434842615,0.024,28383.0,28382.0,0.28405303]
[1680434842813,0.024,28383.0,28382.0,0.33612195]
[1680434843220,0.017,28383.0,28382.0,0.33612195]
[1680434843420,0.017,28383.0,28382.0,0.27288221]
[1680434843618,0.004,28383.0,28382.0,0.27188221]
[1680434844022,0.05,28383.0,28382.0,0.22188221]
[1680434844224,0.002,28383.0,28382.0,0.22888221]
[1680434844526,0.3007,28387.0,28385.0,0.4]
[1680434844825,0.3007,28387.0,28386.0,0.09215771]
[1680434845025,0.3007,28387.0,28386.0,0.04215771]
[1680434846723,0.3047,28387.0,28386.0,0.44215771]
[1680434846928,0.004,28387.0,28386.0,0.4]
[1680434847127,0.004,28387.0,28386.0,0.63301923]
[1680434847429,0.004,28387.0,28386.0,0.85317349]
[1680434848121,0.004,28387.0,28386.0,0.68334689]
[1680434848329,0.004,28387.0,28386.0,0.46676296]
[1680434848530,0.004,28387.0,28386.0,0.46676297]
[1680434849125,0.3007,28389.0,28388.0,0.55]
[1680434849322,0.3007,28389.0,28388.0,0.61318613]
[1680434849829,1.10990999,28402.0,28390.0,0.05]
[1680434849830,0.05,28394.0,28390.0,0.05]
[1680434850030,0.05,28394.0,28390.0,0.0921033]
[1680434850429,0.05,28394.0,28390.0,0.0421033]
[1680434850929,0.073,28394.0,28390.0,0.0431033]
[1680434851431,0.3007,28392.0,28390.0,0.001]
[1680434851726,0.05,28391.0,28390.0,0.001]
[1680434851928,0.3007,28392.0,28390.0,0.0431033]
[1680434852327,0.3007,28392.0,28390.0,0.001]
[1680434852328,0.05,28391.0,28390.0,0.001]
[1680434853329,0.053,28391.0,28389.0,0.0421033]
[1680434854725,0.05,28391.0,28389.0,0.0421033]
[1680434854931,0.053,28391.0,28389.0,0.0421033]
[1680434855130,0.003,28391.0,28389.0,0.0421033]
[1680434855531,0.003,28391.0,28388.0,0.0421033]
[1680434855728,0.3007,28389.0,28387.0,0.0921033]
[1680434855933,0.05,28388.0,28386.0,0.0421033]
[1680434856431,0.05,28388.0,28385.0,0.0421033]
[1680434856633,0.3007,28386.0,28385.0,0.0421033]
[1680434856931,0.3007,28386.0,28384.0,0.11318613]
[1680434857132,0.3007,28386.0,28384.0,0.06318613]
[1680434857333,0.3007,28386.0,28385.0,0.04204399]
[1680434857925,0.3027,28386.0,28385.0,0.04204399]
[1680434858432,0.3007,28386.0,28385.0,0.04204399]
[1680434858633,0.3027,28386.0,28385.0,0.05504399]
[1680434861735,0.002,28386.0,28385.0,0.05504399]
[1680434867441,0.002,28386.0,28385.0,0.05857339]
[1680434869536,0.002,28386.0,28385.0,0.2787371]
[1680434875344,0.002,28386.0,28385.0,0.29987924]
[1680434879449,0.002,28386.0,28385.0,0.23669311]
[1680434881352,0.002,28386.0,28385.0,0.32094995]
[1680434881546,0.002,28386.0,28385.0,0.55397247]
[1680434882149,0.002,28386.0,28385.0,0.32094995]
[1680434882656,0.002,28386.0,28385.0,0.55397241]
[1680434884461,0.002,28386.0,28385.0,0.46971557]
[1680434885254,0.002,28386.0,28385.0,0.57506456]
[1680434885960,0.0017815,28386.0,28385.0,0.57506456]
[1680434886468,0.00156819,28386.0,28385.0,0.57506456]
[1680434887458,0.00156819,28386.0,28385.0,0.46971557]
[1680434888563,0.00136001,28386.0,28385.0,0.46971557]
[1680434888763,0.00115942,28386.0,28385.0,0.46971557]
[1680434889064,0.00095945,28386.0,28385.0,0.46971557]
[1680434889264,0.00074228,28386.0,28385.0,0.46971557]
[1680434889467,0.00053695,28386.0,28385.0,0.46971557]
[1680434901568,0.00053695,28386.0,28385.0,0.59632642]
[1680434902763,0.00033341,28386.0,28385.0,0.59632642]
[1680434910873,0.00033341,28386.0,28385.0,0.46971557]
[1680434911366,0.00033341,28386.0,28385.0,0.59632642]
[1680434912277,0.00033341,28386.0,28385.0,0.46971557]
[1680434915676,0.00033341,28386.0,28385.0,0.59632642]
[1680434917478,0.00033341,28386.0,28385.0,0.46971557]
[1680434920980,0.00033341,28386.0,28385.0,0.4685224]
[1680434923582,0.30103341,28386.0,28385.0,0.4685224]
[1680434925286,0.30103341,28386.0,28385.0,0.57416008]
[1680434925985,0.30103341,28386.0,28385.0,0.57182385]
[1680434926778,0.3027,28386.0,28385.0,0.46618617]
[1680434928679,0.6034,28386.0,28385.0,0.46618617]
[1680434929586,0.6034,28386.0,28385.0,0.55065885]
[1680434930286,0.6014,28386.0,28385.0,0.54165885]
[1680434930586,0.6014,28386.0,28380.0,0.12661085]
[1680434930587,0.05,28385.0,28382.0,0.04214367]
[1680434930883,0.3007,28383.0,28379.0,0.10563768]
[1680434931182,0.05,28379.0,28378.0,0.10563768]
[1680434931384,0.3507,28379.0,28378.0,0.10563768]
[1680434931584,0.3507,28379.0,28378.0,0.32586147]
[1680434931884,0.3507,28379.0,28378.0,0.4533088]
[1680434932976,0.3517,28379.0,28378.0,0.4623088]
[1680434933586,0.3017,28379.0,28378.0,0.4623088]
[1680434933787,0.3527,28379.0,28378.0,0.4623088]
[1680434934388,0.3027,28379.0,28378.0,0.4623088]
[1680434934790,0.3027,28379.0,28378.0,0.22922379]
[1680434934988,0.3527,28379.0,28378.0,0.22922379]
[1680434937790,0.3027,28379.0,28378.0,0.22922379]
[1680434938884,0.3527,28379.0,28378.0,0.009]
[1680434941289,0.3027,28379.0,28378.0,0.009]
[1680434941490,0.3527,28379.0,28378.0,0.009]
[1680434942592,0.35614816,28379.0,28378.0,0.009]
[1680434945295,0.65684816,28379.0,28378.0,0.009]
[1680434946498,0.60684816,28379.0,28378.0,0.009]
[1680434947591,0.60484816,28379.0,28378.0,0.004]
[1680434948800,0.60484816,28379.0,28374.0,0.15563768]
[1680434949097,0.30514816,28379.0,28378.0,0.008]
[1680434949298,0.60584816,28379.0,28378.0,0.008]
[1680434950297,0.60584816,28379.0,28375.0,0.05]
[1680434950487,0.60584816,28379.0,28376.0,0.45331377]
[1680434950691,0.60584816,28379.0,28378.0,0.008]
[1680434951094,0.60584816,28379.0,28375.0,0.05]
[1680434951299,0.3007,28376.0,28375.0,0.058]
[1680434951499,0.3007,28376.0,28375.0,0.27822709]
[1680434951699,0.3007,28376.0,28375.0,0.60895311]
[1680434952403,0.30614816,28379.0,28375.0,0.60895311]
[1680434952601,0.30614816,28379.0,28376.0,0.45331543]
[1680434952802,0.30614816,28379.0,28377.0,0.28307933]
[1680434953002,0.30414816,28379.0,28378.0,0.27022709]
[1680434953205,0.30414816,28379.0,28378.0,0.66956884]
[1680434953502,0.30614816,28379.0,28378.0,0.66956884]
[1680434953905,0.00544816,28379.0,28378.0,0.66956884]
[1680434954302,0.00544816,28379.0,28378.0,0.67756884]
[1680434954794,0.00544816,28379.0,28378.0,0.91063998]
[1680434961206,0.00544816,28379.0,28378.0,0.86063998]
[1680434962703,0.00544816,28379.0,28378.0,0.96627766]
[1680434967512,0.00544816,28379.0,28378.0,0.86063998]
[1680434968712,0.00544816,28379.0,28378.0,0.96608207]
[1680434968913,0.00544816,28379.0,28378.0,0.86063998]
[1680434975515,0.002,28379.0,28378.0,0.86063998]
[1680434984927,0.002,28379.0,28378.0,0.86057784]
[1680434985822,0.00545406,28379.0,28378.0,0.86057784]
[1680434995640,0.002,28379.0,28378.0,0.86057784]
[1680434995940,0.00545703,28379.0,28378.0,0.86057784]
[1680434999439,0.00545703,28379.0,28378.0,0.98718869]
[1680435000539,0.00545703,28379.0,28378.0,0.86057784]
[1680435013354,0.00545703,28379.0,28378.0,0.96620048]
[1680435013551,0.00545703,28379.0,28378.0,0.86057784]
[1680435014360,0.00545703,28379.0,28378.0,0.96619994]
[1680435014657,0.00545703,28379.0,28378.0,0.86057784]
[1680435015257,0.00545703,28379.0,28378.0,0.9661938]
[1680435015957,0.00545703,28379.0,28378.0,0.86057784]
[1680435016355,0.00545703,28379.0,28378.0,0.96619388]
[1680435017257,0.30615703,28379.0,28378.0,0.96619388]
[1680435023761,0.30615703,28379.0,28378.0,0.86057784]
[1680435029768,0.30615703,28379.0,28378.0,1.34537784]
[1680435032769,0.00545703,28379.0,28378.0,1.34537784]
[1680435033068,0.3007,28384.0,28378.0,1.34537784]
[1680435033069,0.3507,28384.0,28378.0,1.34537784]
[1680435033257,0.3007,28384.0,28382.0,0.08449853]
[1680435033461,0.0028363,28383.0,28382.0,0.08449853]
[1680435033961,0.0028363,28383.0,28382.0,0.53777735]
[1680435034162,0.0028363,28383.0,28382.0,0.53777386]
[1680435034363,0.0028363,28383.0,28382.0,0.45327882]
[1680435034867,0.0128363,28383.0,28382.0,0.45427882]
[1680435035465,0.0128363,28383.0,28382.0,0.53876951]
[1680435035769,0.0128363,28383.0,28382.0,0.45427882]
[1680435035969,0.0028363,28383.0,28382.0,0.54176909]
[1680435037766,0.0028363,28383.0,28382.0,0.45727882]
[1680435038270,0.0028363,28383.0,28382.0,0.5417647]
[1680435039068,0.0028363,28383.0,28382.0,0.45727882]
[1680435039272,0.0028363,28383.0,28382.0,0.54176453]
[1680435059182,0.3035363,28383.0,28382.0,0.54176453]
[1680435062584,0.0028363,28383.0,28382.0,0.54176453]
[1680435062791,0.3035363,28383.0,28382.0,0.54176453]
[1680435071791,0.0028363,28383.0,28382.0,0.54176453]
[1680435071999,0.3007,28383.0,28382.0,0.54176453]
[1680435072291,0.30355928,28383.0,28382.0,0.54176453]
[1680435073097,0.35355928,28383.0,28382.0,0.54176453]
[1680435073305,0.30355928,28383.0,28382.0,0.54176453]
[1680435075307,0.30355928,28383.0,28382.0,0.45727882]
[1680435076511,0.35355928,28383.0,28382.0,0.45727882]
[1680435076806,0.35355928,28383.0,28382.0,0.54180144]
[1680435077310,0.35355928,28383.0,28382.0,0.45727882]
[1680435080707,0.65425928,28383.0,28382.0,0.45727882]
[1680435081907,0.60425928,28383.0,28382.0,0.45727882]
[1680435084009,0.00285928,28383.0,28382.0,0.45727882]
[1680435084212,0.6014,28383.0,28382.0,0.45727882]
[1680435084605,0.60425737,28383.0,28382.0,0.45727882]
[1680435085410,0.00285737,28383.0,28382.0,0.45727882]
[1680435085609,0.60425737,28383.0,28382.0,0.45727882]
[1680435085806,0.6014,28383.0,28382.0,0.54181919]
[1680435086008,0.60425783,28383.0,28382.0,0.54181919]
[1680435087614,0.60425783,28383.0,28382.0,0.54166376]
[1680435088012,0.00285783,28383.0,28382.0,0.54166376]
[1680435088214,0.52835814,28389.0,28382.0,0.54166376]
[1680435088408,0.4023,28389.0,28385.0,0.04226796]
[1680435088602,0.6014,28386.0,28385.0,0.04226796]
[1680435089414,0.6014,28386.0,28385.0,0.04326796]
[1680435090317,0.6014,28386.0,28385.0,0.001]
[1680435090516,0.6174,28386.0,28385.0,0.001]
[1680435090911,0.6174,28386.0,28385.0,0.04326796]
[1680435091106,0.6174,28386.0,28385.0,0.001]
[1680435093017,0.62025991,28386.0,28385.0,0.00082054]
[1680435093312,1.02025991,28386.0,28385.0,0.00065454]
[1680435093513,1.02025991,28386.0,28384.0,0.04226796]
[1680435093715,0.05,28385.0,28383.0,0.04226796]
[1680435095019,0.05,28385.0,28384.0,0.001]
[1680435095411,0.06,28385.0,28383.0,0.04326796]
[1680435095918,0.073,28385.0,28384.0,0.001]
[1680435096417,0.073,28385.0,28383.0,0.001]
[1680435097817,0.073,28385.0,28384.0,0.001]
[1680435098013,0.05,28385.0,28382.0,0.04226796]
[1680435098209,0.077,28385.0,28383.0,0.001]
[1680435098416,0.3007,28384.0,28383.0,0.001]
[1680435098617,0.3507,28384.0,28382.0,0.04226796]
[1680435098821,0.05,28383.0,28382.0,0.04226796]
[1680435099718,0.073,28383.0,28382.0,0.04326796]
[1680435100815,0.07581901,28383.0,28382.0,0.04326796]
[1680435107928,0.02581901,28383.0,28382.0,0.04326796]
[1680435108128,0.07581901,28383.0,28382.0,0.04326796]
[1680435112729,0.02581901,28383.0,28382.0,0.04326796]
[1680435114124,0.62721901,28383.0,28382.0,0.04326796]
[1680435127040,0.62721901,28383.0,28382.0,0.001]
[1680435131243,0.62721901,28383.0,28382.0,0.06440193]
[1680435141146,0.62721901,28383.0,28382.0,0.06432866]
[1680435154561,0.02581901,28383.0,28382.0,0.06432866]
[1680435154762,0.62721901,28383.0,28382.0,0.06432866]
[1680435159858,0.02581901,28383.0,28382.0,0.06432866]
[1680435160063,0.62721901,28383.0,28382.0,0.06432866]
[1680435165663,0.02581901,28383.0,28382.0,0.06432866]
[1680435165865,0.62721901,28383.0,28382.0,0.06432866]
[1680435166269,0.62708677,28383.0,28382.0,0.06432866]
[1680435169374,0.02568677,28383.0,28382.0,0.06432866]
[1680435169573,0.62708677,28383.0,28382.0,0.06432866]
[1680435173870,0.02568677,28383.0,28382.0,0.06432866]
[1680435174075,0.62708677,28383.0,28382.0,0.06432866]
[1680435180681,0.05,28382.0,28379.0,0.15562316]
[1680435180881,0.05,28382.0,28380.0,0.28309147]
[1680435181075,0.05,28382.0,28381.0,0.2202336]
[1680435181276,0.6514,28382.0,28381.0,0.2202336]
[1680435181671,0.6514,28382.0,28380.0,0.2202336]
[1680435182282,0.6674,28382.0,28379.0,0.2202336]
[1680435182481,0.6674,28382.0,28380.0,0.23309924]
[1680435182680,0.6674,28382.0,28381.0,0.2202336]
[1680435183079,0.6674,28382.0,28379.0,0.05]
[1680435183080,0.67024348,28382.0,28380.0,0.2202336]
[1680435184079,0.67024348,28382.0,28379.0,0.2202336]
[1680435184385,0.67024348,28382.0,28380.0,0.23309774]
[1680435185187,0.67024348,28382.0,28378.0,0.59042316]
[1680435185381,0.3007,28379.0,28378.0,0.59042316]
[1680435185581,0.3007,28379.0,28378.0,0.82352198]
[1680435185788,0.3007,28379.0,28378.0,1.04375896]
[1680435186681,0.3017,28379.0,28378.0,1.04475896]
[1680435189884,0.3017,28379.0,28378.0,0.9391358]
[1680435198089,0.30454789,28379.0,28378.0,0.9391358]
[1680435199486,0.30654789,28379.0,28378.0,0.9381358]
[1680435200687,0.30654789,28379.0,28378.0,0.70503698]
[1680435202286,0.30654789,28379.0,28378.0,0.4848]
[1680435204592,0.30654789,28379.0,28378.0,0.52704375]
[1680435206394,0.05,28378.0,28374.0,0.10562316]
[1680435206597,0.3007,28375.0,28373.0,0.10562316]
[1680435206799,0.3507,28374.0,28373.0,0.10562316]
[1680435206994,0.3507,28374.0,28373.0,0.33875559]
[1680435207194,0.3007,28374.0,28373.0,0.55902438]
[1680435207498,0.3507,28374.0,28373.0,0.45340122]
[1680435207690,0.3537,28374.0,28373.0,0.45440122]
[1680435208586,0.3037,28374.0,28373.0,0.45440122]
[1680435209091,0.3027,28374.0,28373.0,0.45440122]
[1680435210197,0.3037,28374.0,28373.0,0.22026879]
[1680435210393,0.3037,28374.0,28372.0,0.22026879]
[1680435210593,0.3017,28374.0,28373.0,0.051]
[1680435210797,0.3517,28374.0,28373.0,0.27126879]
[1680435210998,0.3017,28374.0,28373.0,0.22126879]
[1680435211588,0.3037,28374.0,28373.0,0.22026879]
[1680435213197,0.30965683,28374.0,28373.0,0.22026879]
[1680435214802,0.35965683,28374.0,28373.0,0.22026879]
[1680435216604,0.35965683,28374.0,28372.0,0.22026879]
[1680435216807,0.05,28373.0,28372.0,0.22026879]
[1680435217105,0.05,28373.0,28372.0,0.30470239]
[1680435217697,0.051,28373.0,28372.0,0.30570239]
[1680435218105,0.051,28373.0,28372.0,0.22126879]
[1680435222203,0.051,28373.0,28372.0,0.001]
[1680435223608,0.052,28373.0,28370.0,0.0844336]
[1680435223904,0.3507,28371.0,28370.0,0.0844336]
[1680435224103,0.3507,28371.0,28370.0,0.3047227]
[1680435224306,0.3507,28371.0,28370.0,0.5378758]
[1680435225600,0.3007,28371.0,28370.0,0.5378758]
[1680435226002,0.3017,28371.0,28370.0,0.5388758]
[1680435226498,0.3017,28371.0,28370.0,0.3057227]
[1680435227098,0.3017,28371.0,28370.0,0.2212891]
[1680435227099,0.3517,28371.0,28370.0,0.2212891]
[1680435228208,0.35952736,28371.0,28370.0,0.2212891]
[1680435228402,0.35952736,28371.0,28370.0,0.001]
[1680435231708,0.05,28370.0,28366.0,0.0844336]
[1680435231905,0.3007,28367.0,28366.0,0.0844336]
[1680435232106,0.3007,28367.0,28366.0,0.30475056]
[1680435232307,0.3007,28367.0,28366.0,0.53793423]
[1680435233005,0.3007,28367.0,28366.0,0.45350063]
[1680435233205,0.3007,28367.0,28366.0,0.22031696]
[1680435234513,0.3037,28367.0,28366.0,0.22031696]
[1680435240614,0.3037,28367.0,28366.0,0.28355605]
[1680435242532,0.3037,28367.0,28366.0,0.22031696]
[1680435243226,0.31290231,28367.0,28366.0,0.22031696]
[1680435248336,0.31290231,28367.0,28366.0,0.53793126]
[1680435248637,0.31290231,28367.0,28366.0,0.53793124]
[1680435248839,0.31290231,28367.0,28366.0,0.30475056]
[1680435249432,0.31290231,28367.0,28366.0,0.53793157]
[1680435249630,0.31290231,28367.0,28366.0,0.30475056]
[1680435250234,0.31290231,28367.0,28366.0,0.22031696]
[1680435250541,0.31290231,28367.0,28366.0,0.30475056]